bitfinex-derivatives/quotes_SOLF0:USTF0_20250207
["timestamp","ask_amount","ask_price","bid_price","bid_amount"]
[1738889079808,2.27771547,190.48,190.37,5.2526]
[1738889080002,0.03876899,190.41,190.38,0.03995893]
[1738889080202,0.96491695,190.46,190.37,5.2526]
[1738889080507,0.03623722,190.41,190.38,0.03885439]
[1738889080707,23.78675713,190.5,190.37,5.2526]
[1738889081007,0.03817427,190.41,190.38,0.03522637]
[1738889081202,0.03499735,190.41,190.37,5.2526]
[1738889081407,0.03499735,190.41,190.38,0.03676618]
[1738889082003,0.03499735,190.41,190.38,5.28886618]
[1738889082209,0.03499735,190.41,190.38,0.03676618]
[1738889083906,0.03499735,190.41,190.39,5.252]
[1738889086706,0.03499735,190.41,190.38,5.28906618]
[1738889087907,0.03499735,190.41,190.39,5.2519]
[1738889088107,0.03499735,190.41,190.38,0.03676618]
[1738889090719,5.2519,190.4,190.38,0.03676618]
[1738889092207,5.28659735,190.41,190.38,0.03676618]
[1738889092414,0.03499735,190.41,190.38,0.03676618]
[1738889093717,0.03499735,190.41,190.38,5.28896618]
[1738889094317,5.28659735,190.41,190.38,0.03676618]
[1738889097123,5.2521,190.39,190.38,0.03676618]
[1738889097817,0.03499735,190.41,190.38,0.03676618]
[1738889099324,0.03499735,190.41,190.38,5.28906618]
[1738889099923,0.03499735,190.41,190.38,0.03676618]
[1738889100623,0.03499735,190.41,190.4,5.2518]
[1738889101121,0.03499735,190.41,190.38,0.03676618]
[1738889101922,0.03499735,190.41,190.38,5.28906618]
[1738889102112,0.03499735,190.41,190.38,0.03676618]
[1738889103722,5.28659735,190.41,190.38,0.03676618]
[1738889104320,0.03499735,190.41,190.38,0.03676618]
[1738889105826,0.03499735,190.41,190.39,5.2521]
[1738889106528,0.03499735,190.41,190.38,0.03676618]
[1738889107826,5.2518,190.4,190.38,0.03676618]
[1738889108019,1.31313974,190.39,190.24,14.89696595]
[1738889108220,14.89696595,190.37,190.21,19.77096595]
[1738889108424,5.2547,190.3,190.24,5.256]
[1738889108626,1.31313974,190.29,190.24,5.256]
[1738889108825,5.2547,190.3,190.24,5.256]
[1738889109026,1.31371009,190.29,190.24,5.256]
[1738889109220,1.31371009,190.28,190.25,0.0375158]
[1738889109423,1.31371009,190.27,190.25,0.0375158]
[1738889109629,0.03444806,190.29,190.25,0.0375158]
[1738889110228,1.31364259,190.28,190.25,0.0375158]
[1738889110429,0.03444806,190.29,190.25,0.0375158]
[1738889111130,0.03444806,190.29,190.26,5.2556]
[1738889111328,1.31356447,190.28,190.26,5.2556]
[1738889111632,0.03444806,190.29,190.26,5.2556]
[1738889111929,1.31362099,190.28,190.26,5.2556]
[1738889112232,1.31361926,190.27,190.25,0.0375158]
[1738889112434,1.31361926,190.26,190.25,0.0375158]
[1738889113827,1.31361926,190.26,190.25,5.2934158]
[1738889115226,0.03444806,190.29,190.26,5.2556]
[1738889115431,1.31362012,190.28,190.26,5.2556]
[1738889115630,1.31362012,190.27,190.26,5.2556]
[1738889119936,0.03444806,190.29,190.28,5.2551]
[1738889120123,1.34792075,190.29,190.28,5.2551]
[1738889121335,1.34792075,190.29,190.2,14.89696595]
[1738889121336,5.72788626,190.29,190.11,14.89696595]
[1738889121634,14.89696595,190.26,190.08,16.47886595]
[1738889121833,14.89696595,190.23,190.08,16.47886595]
[1738889122029,1.3134382,190.22,190.08,16.47886595]
[1738889122229,5.2578,190.19,190.11,5.2597]
[1738889122436,0.03366003,190.17,190.13,0.04003803]
[1738889122631,1.3134382,190.16,190.13,0.04003803]
[1738889122830,0.03366003,190.17,190.13,0.04003803]
[1738889122831,1.3134382,190.15,190.13,0.04003803]
[1738889123037,1.3134382,190.14,190.13,0.04003803]
[1738889123332,0.03366003,190.17,190.13,0.04003803]
[1738889123635,1.31436934,190.16,190.13,0.04003803]
[1738889123837,1.31436934,190.15,190.13,0.04003803]
[1738889124134,0.03366003,190.17,190.13,0.04003803]
[1738889124331,1.3143751,190.16,190.13,0.04003803]
[1738889124534,0.03366003,190.17,190.13,5.29913803]
[1738889124730,1.31437117,190.16,190.13,5.29913803]
[1738889125034,0.03366003,190.17,190.13,5.29913803]
[1738889125233,1.31436888,190.16,190.13,5.29913803]
[1738889125428,0.03366003,190.17,190.13,5.29913803]
[1738889125637,1.31437184,190.16,190.13,0.04003803]
[1738889125831,0.03366003,190.17,190.13,0.04003803]
[1738889126031,1.31442018,190.16,190.13,0.04003803]
[1738889126232,1.31452768,190.15,190.13,0.04003803]
[1738889126433,1.3145715,190.14,190.13,0.04003803]
[1738889127335,0.03366003,190.17,190.13,0.04003803]
[1738889127537,1.31460856,190.16,190.13,0.04003803]
[1738889127733,1.31460856,190.15,190.13,0.04003803]
[1738889127934,0.03366003,190.17,190.13,0.04003803]
[1738889128133,1.3146078,190.16,190.13,0.04003803]
[1738889128335,0.03366003,190.17,190.13,0.04003803]
[1738889128638,1.31460817,190.16,190.13,0.04003803]
[1738889128839,5.29196003,190.17,190.13,0.04003803]
[1738889129037,1.31460894,190.16,190.13,0.04003803]
[1738889129242,5.29196003,190.17,190.13,0.04003803]
[1738889129440,1.31461018,190.16,190.13,0.04003803]
[1738889129638,5.29196003,190.17,190.13,0.04003803]
[1738889129838,6.57301359,190.16,190.13,0.04003803]
[1738889130039,1.31461359,190.15,190.13,0.04003803]
[1738889130238,5.2584,190.16,190.13,0.04003803]
[1738889130439,0.03366003,190.17,190.13,0.04003803]
[1738889130639,1.31462101,190.16,190.13,0.04003803]
[1738889131339,0.03366003,190.17,190.13,0.04003803]
[1738889131540,1.34826859,190.17,190.13,0.04003803]
[1738889132242,0.03366003,190.17,190.13,0.04003803]
[1738889132735,5.2585,190.16,190.13,0.04003803]
[1738889135850,0.03366003,190.17,190.13,0.04003803]
[1738889137356,0.03366003,190.17,190.16,5.2584]
[1738889138651,0.03366003,190.17,190.15,5.2587]
[1738889139449,0.03366003,190.17,190.13,0.04003803]
[1738889139450,5.29206003,190.17,190.13,0.04003803]
[1738889139652,0.03366003,190.17,190.13,0.04003803]
[1738889140050,1.34816993,190.17,190.13,0.04003803]
[1738889140855,5.259,190.14,190.13,0.04003803]
[1738889141254,5.2585,190.16,190.13,0.04003803]
[1738889141750,0.03366003,190.17,190.13,0.04003803]
[1738889141954,6.60646847,190.17,190.13,0.04003803]
[1738889142153,5.29186003,190.17,190.13,0.04003803]
[1738889142350,0.03366003,190.17,190.13,0.04003803]
[1738889143351,0.03366003,190.17,190.16,5.2584]
[1738889143548,14.92951103,190.24,190.13,0.04003803]
[1738889143851,1.31423965,190.23,190.13,1.57573803]
[1738889144051,1.31423965,190.22,190.17,5.258]
[1738889144251,14.92951103,190.24,190.13,1.5357]
[1738889144447,1.31415332,190.23,190.13,1.5357]
[1738889144652,20.18571103,190.24,190.13,1.5357]
[1738889144850,0.03320009,190.2,190.16,0.03464855]
[1738889145650,1.31413875,190.23,190.16,0.03464855]
[1738889146056,1.31413875,190.23,190.21,5.2568]
[1738889146257,1.5709,190.29,190.17,14.92951103]
[1738889146554,1.31389973,190.28,190.23,5.2564]
[1738889146856,0.03321165,190.25,190.21,0.03934685]
[1738889147056,0.03321165,190.25,190.21,1.68264685]
[1738889147856,0.03321165,190.25,190.24,5.2562]
[1738889148062,1.31384115,190.29,190.23,14.92951103]
[1738889148267,21.64248286,190.36,190.26,14.92951103]
[1738889148560,1.31365147,190.35,190.29,14.92951103]
[1738889148761,21.64248286,190.36,190.3,1.5387]
[1738889148954,21.64248286,190.36,190.32,5.2537]
[1738889149157,1.3132442,190.35,190.32,5.2537]
[1738889149357,21.64248286,190.36,190.32,5.2537]
[1738889149358,21.68036086,190.36,190.32,0.03399263]
[1738889149557,1.31324547,190.35,190.32,0.03399263]
[1738889149757,21.68036086,190.36,190.33,5.2537]
[1738889149960,1.31331046,190.35,190.32,0.03399263]
[1738889150261,1.31331046,190.34,190.32,0.03399263]
[1738889150558,21.68036086,190.36,190.32,0.03399263]
[1738889150758,1.31334576,190.35,190.32,0.03399263]
[1738889151057,1.31334576,190.34,190.33,5.2534]
[1738889151850,0.037878,190.36,190.32,0.03399263]
[1738889152057,1.31332792,190.35,190.32,0.03399263]
[1738889152264,0.037878,190.36,190.32,0.03399263]
[1738889153760,0.037878,190.36,190.35,5.2532]
[1738889155160,0.037878,190.36,190.33,5.2535]
[1738889155366,0.037878,190.36,190.32,0.03399263]
[1738889155558,0.037878,190.36,190.35,5.2532]
[1738889158667,0.037878,190.36,190.33,5.2534]
[1738889158966,0.037878,190.36,190.32,0.03399263]
[1738889159866,0.037878,190.36,190.35,5.2532]
[1738889160971,0.037878,190.36,190.34,5.2532]
[1738889161270,0.037878,190.36,190.32,23.88020096]
[1738889161568,0.037878,190.36,190.32,0.03399263]
[1738889161962,0.037878,190.36,190.33,5.2535]
[1738889162666,0.037878,190.36,190.32,0.03399263]
[1738889162867,0.96521878,190.45,190.35,5.2532]
[1738889163064,0.96521878,190.45,190.32,23.88020096]
[1738889163065,0.9037,190.49,190.36,23.84620833]
[1738889163370,5.2497,190.48,190.42,5.2512]
[1738889163560,1.5754,190.51,190.42,5.2512]
[1738889163759,5.2493,190.49,190.43,5.2509]
[1738889163965,21.64248286,190.52,190.45,23.84620833]
[1738889164165,6.404e-05,190.48,190.45,23.84620833]
[1738889164368,21.64248286,190.53,190.45,23.84620833]
[1738889164562,21.64248286,190.53,190.51,5.2488]
[1738889164958,57.86967278,190.54,190.53,5.2482]
[1738889165363,57.86967278,190.54,190.52,1.5987]
[1738889165566,57.86967278,190.54,190.52,1.63445201]
[1738889165770,57.86967278,190.54,190.52,6.88285201]
[1738889166368,57.86967278,190.54,190.52,1.63445201]
[1738889166766,57.86967278,190.54,190.52,0.03575201]
[1738889167268,63.11767278,190.54,190.52,0.03575201]
[1738889167568,5.248,190.54,190.52,0.03575201]
[1738889167774,5.2492,190.5,190.43,1.5698]
[1738889167971,0.03320803,190.55,190.43,1.5698]
[1738889168264,0.03320803,190.55,190.4,1.6317]
[1738889168265,2.27708826,190.55,190.4,1.6317]
[1738889168465,2.27708826,190.54,190.41,5.2513]
[1738889168667,2.27708826,190.53,190.41,5.2513]
[1738889168869,2.27708826,190.52,190.41,5.2513]
[1738889169168,5.2496,190.48,190.46,0.03895841]
[1738889169371,0.03684702,190.49,190.38,1.5698]
[1738889169573,5.2505,190.45,190.38,1.5698]
[1738889170071,23.84620833,190.5,190.36,5.2526]
[1738889170269,2.27758879,190.49,190.33,25.51110833]
[1738889170473,2.27758879,190.48,190.33,25.51110833]
[1738889170666,0.03520642,190.43,190.39,0.0396514]
[1738889171263,5.2516,190.41,190.39,0.0396514]
[1738889171458,0.03520642,190.43,190.39,0.0396514]
[1738889172973,0.03520642,190.43,190.41,5.2515]
[1738889173768,0.03520642,190.43,190.41,5.2514]
[1738889174565,0.03520642,190.43,190.42,5.2512]
[1738889174859,0.03520642,190.43,190.39,0.0396514]
[1738889175261,5.2518,190.41,190.39,0.0396514]
[1738889175465,0.03520642,190.43,190.39,0.0396514]
[1738889175665,5.2517,190.41,190.39,0.0396514]
[1738889175868,0.03520642,190.43,190.39,0.0396514]
[1738889176666,1.3130709,190.42,190.29,25.48050833]
[1738889176872,5.2528,190.37,190.29,30.73510833]
[1738889177268,5.2528,190.37,190.3,5.2545]
[1738889177575,5.2522,190.39,190.29,25.48050833]
[1738889177767,0.0331325,190.35,190.32,0.03995642]
[1738889180076,5.2535,190.34,190.32,0.03995642]
[1738889180275,0.0331325,190.35,190.32,0.03995642]
[1738889181169,1.31348963,190.34,190.32,0.03995642]
[1738889181469,5.2546,190.3,190.21,3.1722]
[1738889181667,5.2546,190.3,190.23,5.2563]
[1738889182678,0.0380824,190.28,190.25,0.03413265]
[1738889186671,5.2555,190.27,190.25,0.03413265]
[1738889186881,0.0380824,190.28,190.25,0.03413265]
[1738889186882,1.31393184,190.26,190.25,0.03413265]
[1738889187080,1.31393184,190.26,190.16,23.84620833]
[1738889187282,1.31393184,190.26,190.11,4.7216]
[1738889187283,1.31393184,190.25,190.11,4.7216]
[1738889187583,1.31393184,190.24,190.11,4.7216]
[1738889187886,5.2574,190.2,190.13,5.2591]
[1738889188178,1.6033,190.24,190.11,4.7216]
[1738889188384,0.03507451,190.18,190.15,0.03762212]
[1738889190579,5.2584,190.16,190.15,0.03762212]
[1738889190777,6.57298816,190.16,190.15,0.03762212]
[1738889191282,1.31460034,190.16,190.08,5.2604]
[1738889191478,5.2591,190.14,190.08,5.2604]
[1738889191880,25.52320833,190.23,190.06,23.84620833]
[1738889192080,5.2599,190.11,190.06,23.84620833]
[1738889192680,0.03792934,190.1,190.07,0.03637126]
[1738889193279,5.2606,190.08,190.07,0.03637126]
[1738889193686,0.03792934,190.1,190.07,0.03637126]
[1738889193887,5.2604,190.09,190.07,0.03637126]
[1738889194477,0.03792934,190.1,190.07,0.03637126]
[1738889195388,0.03792934,190.1,189.98,4.8553]
[1738889195389,0.03792934,190.1,189.8,23.84620833]
[1738889195594,23.84620833,190.07,189.82,179.8581879]
[1738889195888,5.2625,190.02,189.91,5.2652]
[1738889196077,2.54358311,190.01,189.86,61.08886097]
[1738889196283,1.577,190.01,189.86,61.08886097]
[1738889196483,1.577,190.01,189.91,1.5834]
[1738889196682,0.03920487,189.97,189.94,0.02615851]
[1738889197087,0.03920487,189.97,189.95,5.2642]
[1738889197286,0.03920487,189.97,189.94,0.02615851]
[1738889198389,0.03920487,189.97,189.95,5.2642]
[1738889199688,0.03920487,189.97,189.94,0.02615851]
[1738889200989,0.03920487,189.97,189.95,5.2642]
[1738889201782,6.9171,190.05,189.98,5.2633]
[1738889201990,0.967156,190.04,189.98,5.2633]
[1738889202188,0.967156,190.03,189.94,23.84620833]
[1738889202489,1.6555,190.05,189.94,23.84620833]
[1738889202697,0.96696176,190.04,189.94,23.84620833]
[1738889203088,0.03763413,190.01,189.98,0.03703565]
[1738889203487,5.2603,190.1,189.98,0.03703565]
[1738889203688,0.96677435,190.09,189.98,23.88324398]
[1738889203895,0.96677435,190.08,189.98,23.84620833]
[1738889204091,0.96677435,190.07,189.98,23.84620833]
[1738889204489,5.2608,190.08,189.98,23.84620833]
[1738889204698,0.9667699,190.07,189.98,23.84620833]
[1738889204891,0.03762832,190.04,190.01,0.0374714]
[1738889205692,0.03762832,190.04,190.01,5.3000714]
[1738889207396,0.03762832,190.04,190.03,5.262]
[1738889208104,0.96672091,190.11,190.07,5.2609]
[1738889208305,0.96672091,190.1,190.07,5.2609]
[1738889208506,0.96672091,190.09,190.07,5.2609]
[1738889208707,5.2589,190.15,190.02,23.84620833]
[1738889208903,0.96650367,190.14,190.02,23.84620833]
[1738889209106,0.96650367,190.13,190.02,23.84620833]
[1738889209303,0.03383994,190.1,190.06,0.03751211]
[1738889209504,0.96650367,190.11,190.08,5.2605]
[1738889209703,0.03603901,190.1,190.08,5.2605]
[1738889210207,0.03603901,190.1,190.09,5.2604]
[1738889211208,0.03603901,190.1,190.06,0.0369823]
[1738889211408,0.03603901,190.1,190.08,5.2606]
[1738889212302,0.03603901,190.1,190.07,5.2609]
[1738889212504,0.03603901,190.1,190.06,0.0369823]
[1738889213207,23.88224734,190.1,190.06,0.0369823]
[1738889213405,4.19042698,190.09,189.98,5.2631]
[1738889213700,2.28208142,190.08,189.95,1.6436]
[1738889213899,2.28208142,190.07,189.95,1.6436]
[1738889214106,0.96652698,190.06,189.95,1.6436]
[1738889214408,0.96652698,190.05,189.94,23.84620833]
[1738889214610,0.03322234,190.02,189.99,0.03538969]
[1738889214913,0.96652698,190.01,189.99,0.03538969]
[1738889215110,0.04020506,190.02,189.99,0.03538969]
[1738889215301,0.96702662,190.01,189.99,0.03538969]
[1738889215503,0.04020506,190.02,189.99,0.03538969]
[1738889215504,0.04020506,190.02,189.99,23.88159802]
[1738889215709,2.09711574,190.17,189.99,23.88159802]
[1738889215710,0.96662508,190.16,190.0,23.84620833]
[1738889215909,2.28172461,190.15,190.05,23.84620833]
[1738889216113,2.28172461,190.14,190.05,23.84620833]
[1738889216312,1.5845,190.17,190.05,23.84620833]
[1738889216313,0.96662508,190.13,190.05,23.84620833]
[1738889216503,1.5845,190.17,190.05,23.84620833]
[1738889216504,0.96662508,190.12,190.05,23.84620833]
[1738889216709,0.03832644,190.1,190.09,5.2603]
[1738889217015,0.96662508,190.1,190.09,5.2603]
[1738889217214,0.03837004,190.11,190.09,5.2603]
[1738889220220,0.03837004,190.11,190.1,5.2601]
[1738889220513,21.56575038,190.24,190.09,23.84620833]
[1738889220514,0.96641604,190.15,190.09,23.84620833]
[1738889220821,0.96641604,190.14,190.1,3.2661]
[1738889221013,45.41195871,190.24,190.1,3.2661]
[1738889221213,2.28090387,190.23,190.1,3.2661]
[1738889221410,2.28090387,190.22,190.13,23.84620833]
[1738889221618,2.28090387,190.21,190.18,5.2578]
[1738889221812,2.28090387,190.2,190.18,5.2578]
[1738889222017,2.28090387,190.19,190.13,23.84620833]
[1738889222322,2.28066227,190.18,190.17,0.03665899]
[1738889222711,0.03813743,190.21,190.17,0.03665899]
[1738889222914,2.28042374,190.2,190.17,0.03665899]
[1738889223115,2.28044211,190.19,190.17,0.03665899]
[1738889223421,0.03813743,190.21,190.17,0.03665899]
[1738889223422,1.31436528,190.18,190.17,0.03665899]
[1738889224111,1.31443033,190.18,190.17,0.03665899]
[1738889224718,7.53850269,190.18,190.17,0.03665899]
[1738889225818,2.28060269,190.18,190.04,23.84620833]
[1738889226019,5.2594,190.13,190.04,23.84620833]
[1738889226212,1.31443033,190.12,190.04,23.84620833]
[1738889226417,5.2577,190.19,190.08,23.84620833]
[1738889226621,3.2128,190.25,190.12,23.84620833]
[1738889226622,1.31478119,190.18,190.12,23.84620833]
[1738889226918,5.2576,190.2,190.13,5.259]
[1738889227124,0.03444456,190.17,190.13,0.03918556]
[1738889227623,0.03348583,190.17,190.13,0.03845681]
[1738889229720,5.29178583,190.17,190.13,0.03845681]
[1738889229922,0.03348583,190.17,190.13,0.03845681]
[1738889230519,5.29188583,190.17,190.13,0.03845681]
[1738889231819,0.03348583,190.17,190.14,5.2587]
[1738889232122,0.03348583,190.17,190.13,0.03845681]
[1738889233322,5.2588,190.15,190.13,0.03845681]
[1738889233518,0.03348583,190.17,190.13,0.03845681]
[1738889234621,0.03348583,190.17,190.05,5.2612]
[1738889234818,28.27969416,190.17,190.04,1.5832]
[1738889235023,4.18004253,190.16,190.0,23.84620833]
[1738889235222,5.2615,190.05,189.99,5.2629]
[1738889235418,3.2137,190.16,189.96,23.84620833]
[1738889235618,5.2605,190.09,190.03,5.262]
[1738889235816,5.2605,190.09,190.0,23.84620833]
[1738889236019,0.03662303,190.08,190.04,0.0398294]
[1738889236219,5.26,190.11,190.06,5.2611]
[1738889236522,0.03711681,190.08,190.04,23.88282578]
[1738889236722,1.584,190.16,190.04,23.84620833]
[1738889236914,6.8427,190.16,190.1,5.26]
[1738889237224,6.8427,190.16,190.01,4.783]
[1738889237225,23.08875038,190.22,190.08,23.84620833]
[1738889237427,5.2576,190.2,190.15,5.2587]
[1738889237923,0.03733128,190.19,190.16,0.03722799]
[1738889238118,0.03733128,190.19,190.17,23.84620833]
[1738889238325,21.56575038,190.22,190.17,23.84620833]
[1738889238515,1.31435883,190.21,190.17,23.84620833]
[1738889238721,1.31435883,190.2,190.18,5.2579]
[1738889239027,87.02358171,190.24,190.17,25.49620833]
[1738889239028,21.56575038,190.26,190.17,25.49620833]
[1738889239332,1.31420532,190.25,190.2,23.84620833]
[1738889239524,0.0342513,190.23,190.2,23.84620833]
[1738889239725,21.56575038,190.26,190.2,23.84620833]
[1738889239930,21.56575038,190.26,190.23,23.84620833]
[1738889240820,11.41935038,190.26,190.24,5.256]
[1738889241019,11.45743036,190.26,190.24,5.256]
[1738889241420,11.45743036,190.26,190.22,5.2565]
[1738889241630,11.45743036,190.26,190.2,23.88226188]
[1738889241631,0.03807998,190.26,190.2,23.88226188]
[1738889242228,0.03807998,190.26,190.2,29.13936188]
[1738889242429,1.31404764,190.25,190.2,0.03605355]
[1738889242633,0.03807998,190.26,190.2,0.03605355]
[1738889243022,0.03807998,190.26,190.2,5.29335355]
[1738889243228,1.31398537,190.25,190.2,5.29335355]
[1738889243529,0.03807998,190.26,190.2,0.03605355]
[1738889244127,0.03807998,190.26,190.2,23.88226188]
[1738889245831,0.03807998,190.26,190.23,5.2565]
[1738889247230,0.03807998,190.26,190.2,23.88226188]
[1738889247433,1.31396939,190.25,190.2,0.03605355]
[1738889247632,1.31405812,190.24,190.2,0.03605355]
[1738889247935,0.03807998,190.26,190.2,0.03605355]
[1738889247936,5.257,190.21,190.2,0.03605355]
[1738889248136,6.57105812,190.21,190.2,0.03605355]
[1738889248333,5.2579,190.18,190.12,5.2595]
[1738889248530,1.31458077,190.17,190.12,5.2595]
[1738889248836,5.2579,190.18,190.12,5.2595]
[1738889249027,6.57279169,190.17,190.12,5.2595]
[1738889249336,1.31459169,190.16,190.12,5.2595]
[1738889249537,1.31459169,190.16,190.13,0.03676442]
[1738889249538,0.03704658,190.16,190.13,0.03676442]
[1738889249728,5.29544658,190.16,190.13,0.03676442]
[1738889250039,1.31464566,190.15,190.13,0.03676442]
[1738889250337,5.29544658,190.16,190.13,0.03676442]
[1738889250537,6.57352011,190.15,190.13,0.03676442]
[1738889250738,5.2589,190.15,190.13,0.03676442]
[1738889251137,1.31471232,190.14,190.13,0.03676442]
[1738889251639,6.57371232,190.14,190.13,0.03676442]
[1738889252239,1.31471232,190.14,190.13,0.03676442]
[1738889252834,1.31471232,190.14,190.03,23.84620833]
[1738889253040,2.92761232,190.13,190.03,23.84620833]
[1738889253237,1.31471232,190.12,190.03,23.84620833]
[1738889253440,1.31471232,190.11,190.03,23.84620833]
[1738889253741,1.31471232,190.1,190.03,23.84620833]
[1738889254040,0.0355144,190.08,190.05,0.03864075]
[1738889254840,5.2611,190.07,190.05,0.03864075]
[1738889255241,1.31528525,190.06,190.05,0.03864075]
[1738889255638,6.57648525,190.06,190.05,0.03864075]
[1738889255940,0.0355144,190.08,190.05,0.03864075]
[1738889256538,1.31521101,190.07,190.05,0.03864075]
[1738889256738,0.0355144,190.08,190.05,0.03864075]
[1738889256940,1.31520315,190.07,190.05,0.03864075]
[1738889257233,6.57658927,190.06,190.05,0.03864075]
[1738889260639,1.31538927,190.06,189.91,3.108]
[1738889260845,0.0355144,190.08,189.91,3.108]
[1738889260846,1.601,190.05,189.91,3.108]
[1738889261142,1.601,190.05,189.95,5.2642]
[1738889261143,5.2628,190.01,189.95,5.2642]
[1738889261439,1.659,190.04,189.95,5.2642]
[1738889261645,0.03937056,190.0,189.96,0.03700516]
[1738889263643,0.03937056,190.0,189.97,5.2637]
[1738889263840,0.03937056,190.0,189.96,0.03700516]
[1738889266242,181.19881904,190.23,189.98,23.84620833]
[1738889266453,3.1168,190.17,190.02,23.84620833]
[1738889266637,3.1168,190.17,190.06,23.84620833]
[1738889266841,1.31506112,190.16,190.1,23.84620833]
[1738889267045,3.1168,190.17,190.1,23.84620833]
[1738889267046,1.5609,190.17,190.1,23.84620833]
[1738889267246,1.5609,190.17,190.12,5.2595]
[1738889267447,0.03684367,190.15,190.12,5.29874176]
[1738889267749,5.2591,190.14,190.12,0.03924176]
[1738889268145,0.03684367,190.15,190.12,0.03924176]
[1738889268342,1.31481506,190.14,190.01,3.2624]
[1738889268545,2.98271506,190.13,190.01,3.2624]
[1738889268740,1.31481506,190.12,189.99,23.84620833]
[1738889269049,1.31481506,190.11,189.95,23.84620833]
[1738889269243,25.16102339,190.1,189.91,3.2803]
[1738889269545,0.03952266,190.04,190.0,0.036517]
[1738889269744,1.31481506,190.03,190.0,0.036517]
[1738889270348,5.2626,190.01,190.0,0.036517]
[1738889270753,6.57840318,190.01,190.0,0.036517]
[1738889271752,5.2626,190.01,190.0,0.036517]
[1738889271952,0.03952266,190.04,190.0,0.036517]
[1738889272150,6.57799936,190.03,190.0,0.036517]
[1738889272352,0.03952266,190.04,190.0,0.036517]
[1738889272655,1.31570024,190.03,190.0,0.036517]
[1738889272848,5.2626,190.01,190.0,0.036517]
[1738889273350,0.03952266,190.04,190.0,0.036517]
[1738889273550,5.2626,190.01,190.0,0.036517]
[1738889274954,0.03952266,190.04,189.9,23.84620833]
[1738889275255,1.5592,190.0,189.9,23.84620833]
[1738889275650,4.28,190.05,189.9,23.84620833]
[1738889275850,1.3157984,190.04,189.94,23.84620833]
[1738889276254,0.03967905,190.01,189.97,5.30353677]
[1738889276445,0.03967905,190.01,189.97,0.04013677]
[1738889278252,5.30237905,190.01,189.97,0.04013677]
[1738889278445,0.03967905,190.01,189.97,0.04013677]
[1738889279147,5.30237905,190.01,189.97,0.04013677]
[1738889279348,0.03967905,190.01,189.97,0.04013677]
[1738889279654,5.30227905,190.01,189.97,0.04013677]
[1738889279953,0.03967905,190.01,189.97,0.04013677]
[1738889280551,0.03967905,190.01,190.0,5.2628]
[1738889281054,5.2601,190.11,190.05,5.2614]
[1738889281255,5.2601,190.11,190.02,23.84620833]
[1738889281558,1.6301,190.12,190.02,23.84620833]
[1738889282149,0.03745223,190.09,190.05,0.03473461]
[1738889282853,0.03745223,190.09,190.05,5.29603461]
[1738889283053,0.03745223,190.09,190.05,0.03473461]
[1738889283248,1.6311,190.17,190.13,5.2592]
[1738889283456,1.6162,190.19,190.1,23.84620833]
[1738889283851,1.6623,190.21,190.1,23.84620833]
[1738889283852,1.6623,190.21,190.13,5.2592]
[1738889284054,1.6623,190.21,190.1,23.84620833]
[1738889284261,1.31463345,190.2,190.1,23.84620833]
[1738889284457,0.03516898,190.17,190.14,0.04012114]
[1738889284761,0.03516898,190.17,190.15,5.2586]
[1738889286264,5.2562,190.25,190.18,5.2577]
[1738889286460,1.31429099,190.24,190.18,5.2577]
[1738889287061,5.2562,190.25,190.18,5.2577]
[1738889287268,5.2556,190.27,190.19,5.2574]
[1738889287460,0.0360166,190.23,190.2,0.03483271]
[1738889288766,0.0360166,190.23,190.21,23.84620833]
[1738889289160,5.2539,190.33,190.21,23.84620833]
[1738889289366,1.31401472,190.32,190.25,23.84620833]
[1738889289565,1.31401472,190.31,190.25,23.84620833]
[1738889289766,1.31401472,190.3,190.22,1.5991]
[1738889289969,1.31401472,190.29,190.22,1.5991]
[1738889290264,59.68652114,190.36,190.22,1.5991]
[1738889290465,0.03740054,190.27,190.24,0.03319794]
[1738889290865,5.254,190.33,190.24,0.03319794]
[1738889291067,0.03388688,190.27,190.24,0.03319794]
[1738889292063,0.03388688,190.27,190.24,5.28929794]
[1738889292369,0.03388688,190.27,190.24,0.03319794]
[1738889292562,0.03388688,190.27,190.24,5.28939794]
[1738889292969,0.03388688,190.27,190.24,0.03319794]
[1738889294269,0.03388688,190.27,190.26,5.2557]
[1738889294470,0.03388688,190.27,190.24,0.03319794]
[1738889295766,0.03388688,190.27,190.24,5.28919794]
[1738889296268,0.03388688,190.27,190.26,5.2557]
[1738889296469,1.6708,190.36,190.26,23.84620833]
[1738889296666,1.6708,190.36,190.31,5.254]
[1738889297069,1.6708,190.36,190.26,23.84620833]
[1738889297469,1.6531,190.38,190.26,23.84620833]
[1738889297663,0.03631941,190.33,190.3,23.84620833]
[1738889298469,0.03631941,190.33,190.32,5.254]
[1738889298669,3.1516,190.43,190.3,23.84620833]